bitfinex-derivatives/quotes_SOLF0:USTF0_20241216
["timestamp","ask_amount","ask_price","bid_price","bid_amount"]
[1734351163213,0.32674,214.81,214.77,2.3288]
[1734351163410,0.32674,214.81,214.78,5.04795712]
[1734351163610,0.32674,214.81,214.79,5.04795712]
[1734351163910,0.32674,214.81,214.77,2.3288]
[1734351164116,0.32674,214.81,214.78,5.05081152]
[1734351164315,0.32674,214.81,214.79,5.05081152]
[1734351164615,0.32674,214.81,214.77,2.3288]
[1734351164815,2.65514,214.81,214.78,5.05299638]
[1734351165008,0.32674,214.81,214.72,21.17068659]
[1734351165210,0.32674,214.81,214.73,5.05335917]
[1734351165408,2.3286,214.8,214.76,2.3289]
[1734351165613,2.3286,214.8,214.77,5.05335917]
[1734351165813,2.3286,214.8,214.78,5.05335917]
[1734351166011,2.65514,214.81,214.76,2.3289]
[1734351166214,2.65514,214.81,214.77,5.05351213]
[1734351166615,2.65514,214.81,214.77,2.3288]
[1734351166821,2.65514,214.81,214.78,5.05353509]
[1734351167011,2.65514,214.81,214.79,5.05353509]
[1734351167212,2.65514,214.81,214.77,2.3288]
[1734351167512,2.65514,214.81,214.78,5.05538318]
[1734351167719,2.65514,214.81,214.76,2.3289]
[1734351168017,2.65514,214.81,214.77,5.05566503]
[1734351168218,2.3285,214.8,214.78,5.05566503]
[1734351168517,0.32674,214.81,214.72,18.33068659]
[1734351168715,0.32674,214.81,214.75,2.329]
[1734351168912,0.32674,214.81,214.76,5.05610918]
[1734351169220,2.3285,214.8,214.77,5.05610918]
[1734351169414,2.3285,214.8,214.75,2.329]
[1734351169810,2.3285,214.8,214.76,5.05636082]
[1734351170114,2.3285,214.8,214.77,5.05636082]
[1734351170412,0.32674,214.81,214.73,11.45399231]
[1734351170618,0.32674,214.81,214.74,5.05634247]
[1734351170817,3.16674,214.81,214.72,2.3294]
[1734351171017,3.16674,214.81,214.73,5.05666423]
[1734351171218,3.16674,214.81,214.74,5.05666423]
[1734351171512,14.62073231,214.81,214.67,17.00555943]
[1734351171815,14.62073231,214.81,214.68,5.05757482]
[1734351172120,2.3293,214.73,214.69,7.38727482]
[1734351172311,2.3293,214.73,214.7,5.05757482]
[1734351172619,14.62073231,214.81,214.71,5.05757482]
[1734351172917,14.62073231,214.81,214.72,5.05881516]
[1734351173116,14.62073231,214.81,214.73,5.05881516]
[1734351173312,2.3289,214.77,214.73,2.3292]
[1734351173517,14.62073231,214.81,214.7,11.45399231]
[1734351173717,14.62073231,214.81,214.71,5.05948755]
[1734351173919,14.62073231,214.81,214.67,17.00555943]
[1734351174218,14.62073231,214.81,214.71,2.3295]
[1734351174416,3.16674,214.81,214.72,5.05955336]
[1734351174620,3.16674,214.81,214.7,11.45399231]
[1734351174819,2.3289,214.76,214.73,2.3292]
[1734351175620,3.16674,214.81,214.7,11.45399231]
[1734351175820,2.3291,214.75,214.71,7.39252442]
[1734351176021,2.3291,214.75,214.72,5.06312442]
[1734351176221,2.3291,214.75,214.7,11.45399231]
[1734351176419,2.3291,214.75,214.71,7.39374034]
[1734351176619,2.3291,214.75,214.72,5.06424034]
[1734351176822,2.3291,214.75,214.71,2.3295]
[1734351177025,2.84,214.81,214.72,5.06450945]
[1734351177320,11.45399231,214.79,214.67,17.00555943]
[1734351177623,11.45399231,214.79,214.69,2.3297]
[1734351177819,11.45399231,214.79,214.7,5.06486478]
[1734351178024,11.45399231,214.79,214.64,11.45399231]
[1734351178025,2.3297,214.7,214.64,11.45399231]
[1734351178225,2.3297,214.7,214.65,5.06543632]
[1734351178518,2.3297,214.7,214.66,5.06543632]
[1734351178823,2.3297,214.7,214.67,5.06543632]
[1734351179024,2.3297,214.7,214.68,5.06543632]
[1734351179225,11.45399231,214.73,214.61,11.45399231]
[1734351179419,11.45399231,214.73,214.59,2.64]
[1734351179623,11.45399231,214.73,214.6,5.06588502]
[1734351179824,2.3297,214.7,214.61,7.39648502]
[1734351180122,2.64,214.69,214.62,5.06588502]
[1734351180322,2.64,214.69,214.63,5.06588502]
[1734351180517,6.7477,214.74,214.64,5.06588502]
[1734351180718,2.2362,214.74,214.68,11.45399231]
[1734351180921,2.3292,214.74,214.7,2.3296]
[1734351181125,2.3292,214.74,214.68,11.45399231]
[1734351181529,2.3292,214.74,214.69,5.06383311]
[1734351181825,2.3293,214.73,214.7,7.39333311]
[1734351182024,2.3293,214.73,214.71,5.06383311]
[1734351182220,2.3293,214.73,214.72,5.06383311]
[1734351182926,2.3293,214.73,214.68,11.45399231]
[1734351183227,2.3293,214.73,214.69,5.06449534]
[1734351183423,2.3293,214.73,214.7,5.06449534]
[1734351183625,2.3292,214.74,214.71,5.06449534]
[1734351183823,2.3292,214.74,214.72,5.06449534]
[1734351184022,2.3292,214.74,214.68,11.45399231]
[1734351184322,2.3292,214.74,214.69,5.06443463]
[1734351184523,2.3289,214.77,214.71,11.45399231]
[1734351184721,2.64,214.8,214.72,5.06473012]
[1734351184942,2.64,214.8,214.73,7.39393012]
[1734351185122,2.3287,214.78,214.73,5.06473012]
[1734351185328,2.2927,214.82,214.74,5.06473012]
[1734351185527,2.2927,214.82,214.75,7.39373012]
[1734351185821,2.3286,214.79,214.76,5.06473012]
[1734351186021,2.3286,214.79,214.75,2.329]
[1734351186230,2.3286,214.79,214.76,5.06598341]
[1734351186428,2.3286,214.79,214.77,5.06598341]
[1734351186631,2.3286,214.79,214.75,2.329]
[1734351186831,2.3286,214.79,214.76,5.06845455]
[1734351187030,2.3287,214.78,214.77,5.06845455]
[1734351187331,2.3287,214.78,214.75,2.329]
[1734351187531,2.3287,214.78,214.76,5.06862053]
[1734351187733,2.2927,214.82,214.71,11.45399231]
[1734351188030,2.2927,214.82,214.72,5.06876405]
[1734351188230,2.329,214.76,214.73,5.06876405]
[1734351188532,2.329,214.76,214.72,2.3293]
[1734351188730,2.3292,214.74,214.73,5.06889948]
[1734351188931,2.3292,214.74,214.7,2.3295]
[1734351189234,2.64,214.79,214.71,5.06891089]
[1734351189527,2.64,214.79,214.68,11.45399231]
[1734351189833,2.64,214.79,214.69,7.39897781]
[1734351190028,2.64,214.79,214.7,5.06927781]
[1734351190229,2.64,214.79,214.68,11.45399231]
[1734351190230,2.64,214.79,214.71,5.06927781]
[1734351190435,2.3293,214.74,214.72,5.06927781]
[1734351190631,2.3293,214.74,214.7,2.3296]
[1734351190829,2.3293,214.74,214.71,5.06918113]
[1734351191027,2.3293,214.74,214.7,2.3296]
[1734351191235,2.64,214.79,214.69,2.3297]
[1734351191236,2.3293,214.73,214.69,2.3297]
[1734351191431,2.3293,214.73,214.7,5.06906024]
[1734351191632,2.3293,214.73,214.71,5.06906024]
[1734351191828,2.3293,214.73,214.69,2.3297]
[1734351192130,2.3293,214.73,214.7,5.06918494]
[1734351192335,2.3294,214.72,214.71,5.06918494]
[1734351192540,14.09399231,214.74,214.61,5.67178489]
[1734351192836,2.64,214.73,214.62,5.06959824]
[1734351193030,7.2221,214.73,214.63,5.06959824]
[1734351193237,7.2221,214.73,214.64,5.06959824]
[1734351193432,7.2221,214.73,214.61,5.67178489]
[1734351193433,7.2221,214.73,214.65,5.06959824]
[1734351193633,2.3295,214.71,214.64,2.3302]
[1734351193938,7.2221,214.73,214.65,5.06870775]
[1734351194146,2.3298,214.69,214.64,2.3302]
[1734351194334,2.3298,214.69,214.65,5.06851496]
[1734351194534,2.3298,214.69,214.64,2.3302]
[1734351194741,2.3298,214.69,214.65,5.06850503]
[1734351194938,7.2221,214.73,214.61,5.67178489]
[1734351195236,11.45399231,214.71,214.62,7.3977126]
[1734351195539,11.45399231,214.71,214.63,5.0672126]
[1734351195740,2.33,214.67,214.64,5.0672126]
[1734351196041,11.45399231,214.71,214.62,2.3305]
[1734351196335,11.45399231,214.71,214.63,5.06591101]
[1734351196537,2.3301,214.66,214.62,2.3305]
[1734351196736,11.45399231,214.71,214.63,5.06427482]
[1734351196939,11.45399231,214.71,214.64,5.06427482]
[1734351197138,2.3301,214.66,214.61,5.67178489]
[1734351197342,2.3301,214.66,214.62,5.06275556]
[1734351197641,2.3301,214.66,214.63,5.06275556]
[1734351197835,2.3301,214.65,214.64,5.06275556]
[1734351198442,2.3301,214.65,214.61,8.00228489]
[1734351198741,2.3301,214.65,214.62,5.06137152]
[1734351198943,2.3301,214.65,214.63,5.06137152]
[1734351199140,2.3301,214.65,214.61,8.00228489]
[1734351199351,2.3299,214.68,214.64,2.3302]
[1734351199540,11.45399231,214.71,214.61,5.67178489]
[1734351199739,11.45399231,214.71,214.62,5.05988319]
[1734351200037,2.33,214.67,214.63,7.39018319]
[1734351200238,11.45399231,214.71,214.64,5.05988319]
[1734351200438,2.3301,214.66,214.61,8.00228489]
[1734351200737,11.45399231,214.71,214.61,5.67178489]
[1734351200942,11.45399231,214.71,214.62,5.05932364]
[1734351201142,11.45399231,214.71,214.61,5.67178489]
[1734351201342,11.45399231,214.71,214.62,5.05773714]
[1734351201543,2.3301,214.66,214.62,2.3305]
[1734351202545,2.3298,214.68,214.64,2.3302]
[1734351202739,9.586,214.73,214.61,5.67178489]
[1734351202939,9.586,214.73,214.62,5.05637654]
[1734351203139,9.586,214.73,214.61,5.67178489]
[1734351203344,9.586,214.73,214.62,5.05524574]
[1734351203541,9.586,214.73,214.61,5.67178489]
[1734351203741,9.586,214.73,214.62,5.05528998]
[1734351203942,9.586,214.73,214.61,5.67178489]
[1734351204245,2.33,214.67,214.63,2.3303]
[1734351205943,6.946,214.73,214.62,11.45399231]
[1734351206241,2.64,214.79,214.68,11.45399231]
[1734351206452,9.3796,214.82,214.73,2.3293]
[1734351206643,9.3796,214.82,214.71,11.45399231]
[1734351206644,2.3288,214.78,214.71,11.45399231]
[1734351207349,2.3289,214.77,214.73,2.3292]
[1734351207545,2.3289,214.77,214.71,11.45399231]
[1734351207946,2.3291,214.75,214.71,11.45399231]
[1734351209053,11.45399231,214.8,214.68,11.45399231]
[1734351209343,2.56,214.81,214.69,5.05529423]
[1734351209344,11.45399231,214.77,214.69,5.05529423]
[1734351209549,2.56,214.76,214.65,14.01399231]
[1734351209750,2.3298,214.69,214.66,5.05662344]
[1734351209947,11.45399231,214.74,214.62,14.01399231]
[1734351210143,2.3298,214.69,214.64,2.3302]
[1734351210348,2.3298,214.69,214.65,5.0568354]
[1734351210562,2.3298,214.69,214.64,2.3302]
[1734351211045,2.3299,214.67,214.62,4.8904]
[1734351211355,2.3299,214.67,214.63,5.05764936]
[1734351211548,2.3299,214.67,214.64,5.05764936]
[1734351211748,2.3299,214.67,214.62,4.8904]
[1734351212155,2.3298,214.68,214.64,2.3302]
[1734351212454,4.7061,214.72,214.62,14.01399231]
[1734351212653,4.7061,214.72,214.63,5.0590128]
[1734351212952,4.7061,214.72,214.62,14.01399231]
[1734351212953,4.7061,214.72,214.64,5.0590128]
[1734351213152,4.7061,214.72,214.65,2.3301]
[1734351213153,2.3297,214.7,214.65,2.3301]
[1734351213346,4.7061,214.72,214.62,14.01399231]
[1734351213551,4.7061,214.72,214.63,5.0591007]
[1734351213753,2.3298,214.69,214.64,7.3893007]
[1734351213949,2.3298,214.69,214.64,2.3302]
[1734351214852,4.7061,214.72,214.62,14.01399231]
[1734351215052,2.3299,214.68,214.63,5.06052665]
[1734351215252,2.3299,214.68,214.64,5.06052665]
[1734351215555,4.7061,214.72,214.62,14.01399231]
[1734351215857,4.7061,214.72,214.65,2.3301]
[1734351216057,4.7061,214.72,214.62,14.01399231]
[1734351216350,2.374,214.72,214.63,5.06130283]
[1734351216552,2.3989,214.73,214.64,5.06130283]
[1734351216756,2.3989,214.73,214.65,5.06130283]
[1734351216955,4.7282,214.73,214.68,2.3298]
[1734351217354,2.3989,214.73,214.68,2.3298]
[1734351218451,2.3294,214.72,214.68,2.3298]
[1734351219560,2.3989,214.73,214.62,14.01399231]
[1734351219756,2.3989,214.73,214.63,5.06262001]
[1734351219958,2.3989,214.73,214.64,5.06262001]
[1734351219959,4.7634,214.72,214.64,5.06262001]
[1734351220155,4.7634,214.72,214.65,5.06262001]
[1734351220358,4.7634,214.72,214.64,2.3302]
[1734351220759,4.7634,214.72,214.61,8.23178489]
[1734351220760,2.3299,214.67,214.65,5.06325455]
[1734351220958,2.3299,214.67,214.63,2.3303]
[1734351221258,2.3299,214.67,214.64,5.06326001]
[1734351221455,2.3299,214.67,214.65,5.06326001]
[1734351221656,2.3299,214.67,214.63,2.3303]
[1734351221862,2.3299,214.67,214.64,5.06348637]
[1734351222059,2.3299,214.67,214.63,2.3303]
[1734351222267,2.3299,214.67,214.64,5.06363855]
[1734351222457,2.3301,214.66,214.62,2.3304]
[1734351222665,2.3301,214.66,214.63,5.06363769]
[1734351222863,14.01399231,214.71,214.64,5.06363769]
[1734351223062,14.01399231,214.71,214.61,5.67178489]
[1734351223362,14.01399231,214.71,214.62,5.06383005]
[1734351223563,14.01399231,214.71,214.63,5.06383005]
[1734351223762,14.01399231,214.71,214.61,5.67178489]
[1734351223957,11.45399231,214.68,214.62,5.06348743]
[1734351224190,11.45399231,214.68,214.56,11.45399231]
[1734351224467,11.45399231,214.68,214.57,5.06328268]
[1734351224662,11.45399231,214.68,214.58,5.06328268]
[1734351224856,11.45399231,214.68,214.59,5.06328268]
[1734351225055,11.45399231,214.68,214.6,5.06328268]
[1734351225266,11.45399231,214.68,214.55,2.56]
[1734351225465,2.3305,214.62,214.57,2.3309]
[1734351225668,2.3305,214.62,214.58,5.06243729]
[1734351225862,14.01399231,214.65,214.59,5.06243729]
[1734351226062,14.01399231,214.65,214.55,5.5614703]
[1734351226063,2.3084,214.64,214.55,5.5614703]
[1734351226361,2.3084,214.64,214.56,5.06297866]
[1734351226567,11.45399231,214.62,214.5,14.01399231]
[1734351226768,11.45399231,214.62,214.51,5.06152895]
[1734351227067,11.45399231,214.62,214.52,5.06152895]
[1734351227262,11.45399231,214.62,214.53,5.06152895]
[1734351227567,2.331,214.58,214.54,7.39282895]
[1734351227758,2.331,214.58,214.55,5.06152895]
[1734351227963,2.331,214.58,214.54,2.3313]
[1734351228162,2.331,214.58,214.55,5.05995602]
[1734351228370,2.331,214.58,214.54,2.3313]
[1734351228567,2.331,214.58,214.55,5.05837629]
[1734351228765,4.7836,214.63,214.53,17.15134679]
[1734351228968,2.3209,214.63,214.54,5.05823576]
[1734351229174,2.3209,214.63,214.55,5.05823576]
[1734351229468,2.3305,214.62,214.57,2.3309]
[1734351229670,2.3209,214.63,214.57,2.3309]
[1734351229871,2.3209,214.63,214.53,17.15134679]
[1734351230170,2.3209,214.63,214.54,5.05764757]
[1734351230368,2.3209,214.63,214.53,17.15134679]
[1734351230566,2.3209,214.63,214.54,5.05784915]
[1734351230875,2.56,214.68,214.56,11.45399231]
[1734351231066,16.29169231,214.71,214.59,11.45399231]
[1734351231270,16.29169231,214.71,214.6,5.05784915]
[1734351231461,2.3298,214.68,214.63,2.3304]
[1734351232266,2.33,214.67,214.63,2.3304]
[1734351232469,16.29169231,214.71,214.62,2.3304]
[1734351232773,11.45399231,214.68,214.57,2.56]
[1734351232972,11.45399231,214.68,214.56,11.45399231]
[1734351232973,2.3308,214.6,214.58,5.06082588]
[1734351233276,2.56,214.65,214.59,5.06174845]
[1734351233602,2.3304,214.63,214.59,2.3307]
[1734351233976,2.3304,214.63,214.6,5.06158722]
[1734351234175,2.56,214.65,214.59,2.3307]
[1734351234375,2.3306,214.62,214.6,5.06251378]
[1734351234574,2.3306,214.62,214.58,2.3309]
[1734351234771,2.56,214.65,214.59,5.06251246]
[1734351235073,2.56,214.65,214.56,2.331]
[1734351235271,2.56,214.65,214.53,17.15134679]
[1734351235272,2.3209,214.64,214.57,5.06281856]
[1734351235473,2.3309,214.59,214.58,5.06281856]
[1734351235974,2.3309,214.59,214.55,2.3311]
[1734351236176,2.56,214.63,214.56,5.06350188]
[1734351236177,2.331,214.58,214.56,5.06350188]
[1734351236372,2.331,214.58,214.57,5.06350188]
[1734351236973,2.56,214.63,214.53,17.15134679]
[1734351237170,2.56,214.63,214.57,5.06371542]
[1734351237474,2.3307,214.61,214.58,5.06371542]
[1734351237677,2.3307,214.61,214.57,2.3309]
[1734351237876,2.3307,214.61,214.58,5.06399432]
[1734351238077,2.3307,214.61,214.57,2.3309]
[1734351238274,2.3307,214.61,214.58,5.06370131]
[1734351238467,2.3307,214.61,214.57,2.3309]
[1734351238672,2.56,214.63,214.58,5.06353843]
[1734351238972,2.56,214.63,214.53,5.69735448]
[1734351239180,2.56,214.63,214.54,5.06384462]
[1734351239475,4.8118,214.64,214.56,11.45399231]
[1734351239675,11.45399231,214.7,214.57,5.06384462]
[1734351239868,13.77889231,214.7,214.58,5.06384462]
[1734351240074,13.77889231,214.7,214.59,16.51783693]
[1734351240270,13.77889231,214.7,214.6,5.06384462]
[1734351240570,2.3249,214.7,214.61,5.06384462]
[1734351240776,2.3249,214.7,214.62,5.06384462]
[1734351241078,2.3249,214.7,214.63,5.06384462]
[1734351241383,2.3298,214.68,214.65,2.3301]
[1734351241579,2.3298,214.68,214.61,2.56]
[1734351241768,2.3298,214.68,214.62,5.06179167]
[1734351241969,2.3298,214.68,214.63,5.06179167]
[1734351242179,2.3298,214.68,214.64,5.06179167]
[1734351242370,2.3298,214.68,214.63,2.3303]
[1734351242575,2.3298,214.68,214.64,5.06169954]
[1734351242773,2.3298,214.68,214.63,2.3303]
[1734351242980,2.3298,214.68,214.64,5.0618682]
[1734351243180,2.3298,214.68,214.63,2.3303]
[1734351243378,2.3298,214.68,214.64,5.06156213]
[1734351243582,2.3298,214.68,214.63,2.3303]
[1734351243774,2.3298,214.68,214.64,5.06190868]
[1734351243980,2.3298,214.68,214.63,2.3303]
[1734351244178,2.3298,214.68,214.64,5.0618634]
[1734351244377,2.3298,214.68,214.63,2.3303]
[1734351244582,0.22419,214.72,214.66,2.3299]
[1734351244882,0.22419,214.72,214.62,11.45399231]
[1734351245182,0.22419,214.72,214.63,5.06158671]
[1734351245382,0.22419,214.72,214.64,5.06158671]
[1734351245585,0.22419,214.72,214.65,5.06158671]
[1734351245788,2.3296,214.71,214.66,7.39141584]
[1734351246083,2.3296,214.71,214.66,2.33]
[1734351246481,2.3296,214.71,214.67,5.06104396]
[1734351246689,2.3296,214.7,214.66,2.33]
[1734351247386,2.55369,214.72,214.67,2.3299]
[1734351248282,2.55369,214.72,214.62,11.45399231]
[1734351248482,2.55369,214.72,214.68,2.3298]
[1734351248884,2.55369,214.72,214.62,11.45399231]
[1734351249085,2.55369,214.72,214.63,5.06071406]
[1734351249382,2.55369,214.72,214.64,10.59291984]
[1734351249578,2.55369,214.72,214.67,2.3299]
[1734351249784,2.3295,214.71,214.67,2.3299]
[1734351251379,0.22419,214.72,214.64,5.53220578]
[1734351251583,0.22419,214.72,214.65,5.06054661]
[1734351251777,0.22419,214.72,214.66,7.62054661]
[1734351251977,0.22419,214.72,214.69,2.3296]
[1734351252689,0.22419,214.72,214.66,2.56]
[1734351252887,0.22419,214.72,214.67,5.06157456]
[1734351253081,0.22419,214.72,214.68,5.06157456]
[1734351253283,0.22419,214.72,214.71,2.3295]
[1734351253479,0.22419,214.72,214.71,7.39107456]
[1734351254187,0.22419,214.72,214.69,2.3296]
[1734351256283,0.22419,214.72,214.7,2.3296]
[1734351257586,0.22419,214.72,214.67,2.56]
[1734351257781,0.22419,214.72,214.68,5.05972018]
[1734351257986,0.22419,214.72,214.69,5.05972018]
[1734351258290,0.22419,214.72,214.67,2.56]
[1734351258488,0.22419,214.72,214.69,2.3296]
[1734351258691,0.22419,214.72,214.67,2.56]
[1734351258887,0.22419,214.72,214.65,13.93539231]
[1734351259193,0.22419,214.72,214.7,2.3295]
[1734351259983,0.22419,214.72,214.64,5.53220578]
[1734351260183,0.22419,214.72,214.65,5.05906823]
[1734351260395,0.22419,214.72,214.64,5.53220578]
[1734351260593,2.3299,214.68,214.65,5.05916878]
[1734351260794,2.3299,214.68,214.64,5.53220578]
[1734351260795,0.22419,214.72,214.64,5.53220578]
[1734351260984,0.22419,214.72,214.65,5.05919674]
[1734351261190,0.22419,214.72,214.64,5.53220578]
[1734351262399,2.3297,214.69,214.65,2.3301]
[1734351264089,2.3298,214.68,214.65,2.3301]
[1734351265293,2.3297,214.69,214.64,5.53220578]
[1734351265495,2.3297,214.69,214.66,2.33]
[1734351265690,0.22419,214.72,214.64,5.53220578]
[1734351265893,0.22419,214.72,214.65,2.3301]
[1734351266597,2.3298,214.69,214.65,2.3301]
[1734351266793,0.22419,214.72,214.65,2.3301]
[1734351267196,2.3296,214.7,214.66,2.33]
[1734351267505,2.2637,214.74,214.64,5.53220578]
[1734351267799,2.2637,214.74,214.65,7.61975069]
[1734351268092,2.2637,214.74,214.65,2.56]
[1734351268487,2.3296,214.71,214.65,2.56]
[1734351268895,2.2637,214.74,214.65,2.56]
[1734351269098,11.45399231,214.72,214.59,14.01399231]
[1734351269296,11.45399231,214.72,214.6,5.06021806]
[1734351269495,11.45399231,214.72,214.61,5.06021806]
[1734351269797,11.45399231,214.72,214.62,5.06021806]
[1734351269995,11.45399231,214.72,214.59,14.01399231]
[1734351270298,11.45399231,214.72,214.6,7.6200743]
[1734351270499,11.45399231,214.72,214.63,2.3304]
[1734351271193,11.45399231,214.72,214.64,5.06065292]
[1734351271394,11.45399231,214.72,214.65,5.06047186]
[1734351271602,11.45399231,214.72,214.6,2.56]
[1734351271794,2.3298,214.69,214.61,5.06106631]
[1734351272014,11.45399231,214.72,214.62,5.06106631]
[1734351272195,11.45399231,214.72,214.6,2.56]
[1734351272499,11.45399231,214.72,214.61,5.06102036]
[1734351272700,11.45399231,214.72,214.62,5.06102036]
[1734351272993,11.45399231,214.72,214.63,5.06102036]
[1734351273298,2.2637,214.74,214.64,5.06102036]
[1734351273496,2.3294,214.72,214.67,2.3298]
[1734351273696,2.2637,214.74,214.67,2.3298]
[1734351274393,2.2637,214.74,214.62,11.45399231]
[1734351274695,2.2637,214.74,214.65,11.45399231]
[1734351275001,2.3293,214.73,214.66,7.62442708]
[1734351275199,2.3293,214.73,214.69,2.3297]
[1734351275992,2.3294,214.72,214.69,2.3297]
[1734351278095,2.4227,214.75,214.66,2.56]
[1734351278294,2.3292,214.74,214.7,2.3296]
[1734351279093,2.4423,214.8,214.68,11.45399231]
[1734351279295,2.3289,214.77,214.74,2.3291]
[1734351279499,5.0023,214.8,214.68,11.45399231]
[1734351279799,11.45399231,214.75,214.69,5.06570473]
[1734351280105,4.8774,214.74,214.63,5.65918992]
[1734351280399,2.3174,214.74,214.66,11.45399231]
[1734351280802,4.6466,214.74,214.66,11.45399231]
[1734351282399,4.6466,214.74,214.68,2.3298]
[1734351282599,4.6466,214.74,214.65,2.56]
[1734351282600,2.3294,214.73,214.65,2.56]
[1734351282794,2.3174,214.74,214.69,5.07095483]
[1734351282992,2.3174,214.74,214.7,2.3296]
[1734351283193,0.34221,214.79,214.7,2.56]
[1734351283394,0.34221,214.79,214.72,11.45399231]
[1734351283596,0.34221,214.79,214.73,5.07266598]
[1734351283802,0.34221,214.79,214.74,5.07266598]
[1734351284002,0.34221,214.79,214.75,5.07266598]
[1734351284301,0.34221,214.79,214.76,5.07266598]
[1734351284502,0.34221,214.79,214.77,5.07494257]
[1734351284801,0.34221,214.79,214.72,11.45399231]
[1734351285002,0.34221,214.79,214.73,5.07186435]
[1734351285204,0.34221,214.79,214.74,5.07186435]
[1734351285393,0.34221,214.79,214.75,5.07186435]
[1734351285597,0.34221,214.79,214.76,5.07186435]
[1734351285797,0.34221,214.79,214.72,11.45399231]
[1734351285994,0.34221,214.79,214.76,2.3289]
[1734351286799,0.34221,214.79,214.74,2.3292]
[1734351286800,2.67081,214.79,214.74,2.3292]
[1734351287099,2.67081,214.79,214.75,5.06755586]
[1734351287303,2.67081,214.79,214.76,5.06755586]
[1734351287503,2.67081,214.79,214.72,11.45399231]
[1734351287705,2.67081,214.79,214.73,5.06585132]
[1734351287903,2.67081,214.79,214.74,5.06585132]
[1734351288105,2.67081,214.79,214.75,5.06585132]
[1734351288299,2.67081,214.79,214.76,5.06585132]
[1734351288603,2.67081,214.79,214.75,2.329]
[1734351288902,0.34221,214.79,214.76,5.06462496]
[1734351289203,0.34221,214.79,214.75,8.01880994]
[1734351290504,0.34221,214.79,214.76,2.3289]
[1734351290901,0.34221,214.79,214.75,5.68980994]
[1734351291102,0.34221,214.79,214.77,2.3288]
[1734351291503,2.3284,214.81,214.77,2.3288]
[1734351292602,2.3286,214.79,214.75,8.01880994]
[1734351292812,2.56,214.85,214.72,11.45399231]
[1734351293011,2.56,214.85,214.73,5.06062073]
[1734351293306,2.56,214.85,214.72,11.45399231]
[1734351293505,2.56,214.85,214.74,5.0603554]
[1734351293701,2.3284,214.82,214.75,2.329]
[1734351293905,2.56,214.85,214.75,2.329]
[1734351294103,2.56,214.85,214.72,11.45399231]
[1734351294305,2.3284,214.82,214.78,2.3287]
[1734351294509,2.56,214.87,214.75,14.01399231]
[1734351294810,2.328,214.85,214.76,5.05880745]
[1734351295012,2.328,214.85,214.77,5.05880745]
[1734351295203,2.328,214.85,214.78,5.05880745]
[1734351295409,2.56,214.89,214.75,14.01399231]
[1734351295608,2.56,214.89,214.76,5.05728618]
[1734351295912,2.56,214.89,214.77,5.05728618]
[1734351296104,2.56,214.89,214.78,5.05728618]
[1734351296105,2.3281,214.85,214.78,5.05728618]
[1734351296305,2.56,214.89,214.75,14.01399231]
[1734351296507,14.30775231,214.9,214.76,5.05602831]
[1734351296508,7.0722,214.88,214.76,5.05602831]
[1734351296711,7.0722,214.88,214.77,5.05602831]
[1734351296911,7.0722,214.88,214.75,14.01399231]
[1734351297211,7.0722,214.88,214.76,5.05601083]
[1734351297412,2.3281,214.84,214.8,2.3284]
[1734351299104,7.0722,214.88,214.81,2.3284]
[1734351299305,2.2656,214.88,214.81,11.45399231]
[1734351299604,2.85376,214.9,214.81,11.45399231]
[1734351299816,2.3278,214.87,214.84,2.328]
[1734351300107,2.85376,214.9,214.81,11.45399231]
[1734351300502,2.3279,214.87,214.83,2.3281]
[1734351300904,2.85376,214.9,214.78,11.45399231]
[1734351301108,2.85376,214.9,214.79,7.59126804]
[1734351301406,14.30775231,214.9,214.79,2.54]
[1734351302113,7.32718977,214.89,214.82,7.32718977]
[1734351302312,7.32718977,214.89,214.82,9.65548977]
[1734351302707,2.85376,214.9,214.82,7.32718977]
[1734351302912,2.3278,214.87,214.83,2.3282]
[1734351303108,2.3278,214.87,214.84,7.32718977]
[1734351303310,2.3277,214.88,214.85,2.328]
[1734351304313,0.51516,214.9,214.87,2.3276]
[1734351304508,0.51516,214.9,214.88,7.32718977]